bitfinex/quotes_ETHUSD_20250623
["timestamp","ask_amount","ask_price","bid_price","bid_amount"]
[1750693898769,0.7562,2260.6,2259.3,10.64]
[1750693898972,0.7562,2260.6,2259.4,10.9982]
[1750693899358,0.7562,2260.6,2260.3,4.42404251]
[1750693899676,0.7562,2260.6,2259.4,0.7662]
[1750693899859,0.7562,2260.6,2259.9,4.42488042]
[1750693900071,0.7562,2260.6,2260.0,2.305]
[1750693900270,0.7562,2260.6,2260.2,4.42422159]
[1750693900450,11.01991893,2261.1,2260.0,2.305]
[1750693900451,0.7647,2261.0,2260.1,0.7662]
[1750693900986,0.7647,2261.0,2260.4,4.42387884]
[1750693901150,0.7647,2261.0,2260.1,0.7662]
[1750693901350,0.7647,2261.0,2260.4,2.305]
[1750693901552,1.94316189,2261.0,2260.4,2.305]
[1750693901775,1.94316189,2261.0,2260.4,6.72887672]
[1750693901960,0.7647,2261.0,2260.5,4.42365575]
[1750693902173,0.7647,2261.0,2260.5,8.84731035]
[1750693902486,0.7647,2261.0,2260.6,4.4234454]
[1750693902648,0.7647,2261.0,2260.5,4.42370702]
[1750693902849,0.7647,2261.0,2260.4,6.72891326]
[1750693903085,1.01897763,2261.5,2260.4,2.74083631]
[1750693903255,0.7647,2261.4,2260.5,2.304]
[1750693903449,10.7647,2261.4,2260.5,2.304]
[1750693903653,11.78367763,2261.4,2260.5,2.304]
[1750693903866,11.78367763,2261.4,2260.5,6.72771518]
[1750693904185,11.78367763,2261.4,2260.5,6.72770743]
[1750693904358,11.78367763,2261.4,2260.5,2.304]
[1750693904359,14.28196861,2261.4,2260.5,2.304]
[1750693904686,1.01897763,2261.3,2260.5,6.72778553]
[1750693905086,13.26299098,2261.4,2260.6,4.42357152]
[1750693905246,1.01960029,2261.3,2260.5,6.72768878]
[1750693905775,1.01960029,2261.3,2260.5,6.72778128]
[1750693905972,3.76778264,2261.3,2260.5,2.304]
[1750693906285,3.76778264,2261.3,2260.5,6.72778519]
[1750693906488,1.01960029,2261.3,2260.6,4.42349684]
[1750693906693,11.78430029,2261.4,2260.5,6.72775575]
[1750693907196,11.78430029,2261.4,2260.7,4.423355]
[1750693907431,11.78430029,2261.4,2260.7,8.84661166]
[1750693907710,11.78430029,2261.4,2260.5,2.304]
[1750693907917,11.78430029,2261.4,2260.8,4.42308273]
[1750693908054,1.78430029,2261.4,2260.9,4.42288501]
[1750693908253,1.78430029,2261.4,2260.5,2.304]
[1750693908254,0.7647,2261.4,2261.1,4.4225425]
[1750693908451,2.07211756,2261.7,2261.2,4.4224305]
[1750693908722,1.84730029,2261.7,2261.1,4.42253799]
[1750693908995,11.84730029,2261.7,2261.2,4.42242817]
[1750693909367,11.84730029,2261.7,2261.0,6.72670839]
[1750693909816,11.22529587,2261.5,2260.4,11.06783631]
[1750693909990,0.7897,2261.1,2260.6,4.42357475]
[1750693910186,0.7897,2261.1,2260.6,4.42349381]
[1750693910491,0.7897,2261.1,2260.5,4.42370481]
[1750693910977,0.7897,2261.1,2260.5,4.42373321]
[1750693911487,0.7897,2261.1,2260.4,13.37183631]
[1750693911716,3.01264879,2261.1,2260.5,2.303]
[1750693911879,3.01264879,2261.1,2260.4,11.06783631]
[1750693912215,3.01264879,2261.1,2260.6,4.42350338]
[1750693912421,1.8111492,2261.1,2260.4,15.05591253]
[1750693912635,1.8111492,2261.1,2260.4,15.05589774]
[1750693912918,1.8111492,2261.1,2260.4,10.632]
[1750693913218,0.7897,2261.1,2260.7,4.42337837]
[1750693913433,0.7897,2261.1,2260.4,17.35897827]
[1750693913637,0.7897,2261.1,2260.4,11.07012264]
[1750693913840,1.99119959,2261.1,2260.5,2.303]
[1750693913986,3.01264879,2261.1,2260.5,6.72677739]
[1750693914182,12.24674507,2261.0,2260.5,2.303]
[1750693914385,11.22529587,2260.6,2259.6,0.7961]
[1750693914588,0.8044,2260.8,2259.6,0.7961]
[1750693914589,11.22529587,2260.3,2259.6,0.7961]
[1750693914887,0.7993,2260.1,2259.4,4.42595379]
[1750693915116,0.7993,2260.1,2259.0,0.7776]
[1750693915117,11.22529587,2259.7,2259.0,2.303]
[1750693915419,1.02237499,2259.6,2259.0,2.303]
[1750693915613,1.82167499,2259.5,2259.0,2.303]
[1750693915817,1.02237499,2259.4,2258.9,4.42685042]
[1750693916002,0.7993,2259.5,2258.8,16.72996317]
[1750693916003,1.02237499,2259.3,2258.8,16.72996317]
[1750693916229,7.872,2260.0,2258.6,12.933]
[1750693916230,0.7993,2259.1,2258.6,12.933]
[1750693916431,0.7993,2258.9,2258.3,4.8809892]
[1750693916668,1.02237499,2258.8,2258.6,4.42736963]
[1750693916870,1.02237499,2258.7,2258.5,4.42762107]
[1750693917177,1.02237499,2258.8,2258.5,10.0]
[1750693917391,1.02237499,2258.7,2258.2,14.42817706]
[1750693917534,1.02237499,2258.6,2258.2,14.42817706]
[1750693917738,1.02237499,2258.5,2258.1,2.304]
[1750693917959,1.02516637,2258.4,2258.1,2.304]
[1750693918153,1.02516637,2258.3,2257.9,4.42888464]
[1750693918481,1.02516637,2258.2,2257.9,4.42886849]
[1750693918650,0.7937,2258.6,2258.0,10.0]
[1750693918970,1.02546299,2258.5,2258.0,10.0]
[1750693919169,1.02546299,2258.4,2257.8,12.304]
[1750693919369,0.7877,2259.2,2258.6,4.42746173]
[1750693919544,3.01422411,2259.1,2258.6,4.42746173]
[1750693919865,3.01422411,2259.1,2258.3,4.42801463]
[1750693919866,0.7781,2258.9,2258.3,4.42801463]
[1750693920044,1.02502452,2258.8,2258.4,4.42789219]
[1750693920244,1.02502452,2258.7,2258.3,12.304]
[1750693920571,1.02502452,2258.6,2258.3,16.73200685]
[1750693920735,1.02502452,2258.5,2258.3,16.73200958]
[1750693920932,1.02502452,2258.4,2258.3,16.73200958]
[1750693921864,1.02502452,2258.8,2258.4,4.42772754]
[1750693922170,1.02502452,2258.7,2258.3,16.73202224]
[1750693922368,1.02502452,2258.6,2258.3,16.73202224]
[1750693922671,1.02502452,2258.5,2258.4,4.42791356]
[1750693922883,0.7555,2258.6,2258.3,10.0]
[1750693923038,1.02502452,2258.5,2257.8,10.131]
[1750693923239,1.02502452,2258.4,2258.2,4.42821941]
[1750693923584,1.02502452,2258.5,2258.4,4.42791356]
[1750693923737,1.02502452,2258.5,2258.2,4.4281277]
[1750693923738,1.02502452,2258.5,2258.2,4.42821667]
[1750693924171,1.02502452,2258.5,2258.1,10.0]
[1750693924340,0.7555,2258.6,2258.3,4.42809886]
[1750693924858,0.823,2258.3,2257.7,4.42920231]
[1750693925051,0.823,2258.3,2257.7,10.0]
[1750693925052,1.84802452,2258.3,2257.7,10.0]
[1750693925453,1.84802452,2258.3,2257.7,14.42926606]
[1750693925658,1.02502452,2258.3,2258.2,4.42830573]
[1750693925975,0.772,2258.6,2258.2,4.42829094]
[1750693926141,0.772,2258.6,2257.8,10.0]
[1750693926342,0.772,2258.6,2258.1,4.42831104]
[1750693926674,2.99469264,2258.6,2258.1,4.42831104]
[1750693926890,0.772,2258.6,2258.2,4.42812168]
[1750693927056,0.772,2258.6,2258.0,10.0]
[1750693927249,0.772,2258.6,2258.0,24.56960482]
[1750693927597,0.772,2258.6,2258.0,24.5696976]
[1750693927746,0.772,2258.6,2258.0,20.141]
[1750693927948,2.99338615,2258.6,2258.1,4.42841691]
[1750693928367,1.97172959,2258.6,2258.0,24.56959347]
[1750693928678,2.99293504,2258.6,2258.1,4.42839721]
[1750693928840,2.99293504,2258.6,2258.0,20.141]
[1750693928841,2.99293377,2258.6,2258.0,20.141]
[1750693929038,2.99293377,2258.6,2258.0,4.42857558]
[1750693929242,1.42182296,2258.5,2257.9,10.0]
[1750693929442,1.42182296,2258.5,2257.9,14.42884717]
[1750693929682,1.79320418,2258.6,2258.1,4.42839974]
[1750693929853,0.772,2258.6,2257.9,10.0]
[1750693930060,11.22529587,2258.5,2257.8,16.69001182]
[1750693931391,0.8016,2258.1,2257.3,10.63]
[1750693931594,0.8016,2258.1,2257.5,2.261]
[1750693931595,11.22529587,2257.9,2257.5,2.261]
[1750693931752,0.8016,2258.1,2257.8,4.42908148]
[1750693931957,0.7927,2258.5,2258.1,4.42850183]
[1750693932155,0.85235682,2258.4,2257.9,4.42879744]
[1750693932369,0.85235682,2258.4,2258.1,4.42849837]
[1750693932568,0.7927,2258.5,2257.8,14.42909026]
[1750693932756,0.7927,2258.5,2258.2,4.42820947]
[1750693932955,0.7927,2258.5,2258.1,4.42839229]
[1750693933166,0.7927,2258.5,2258.0,4.42857757]
[1750693933378,0.7927,2258.5,2258.0,10.0]
[1750693933593,1.20179959,2258.4,2258.0,14.42868539]
[1750693933789,0.7927,2258.5,2258.0,14.4285806]
[1750693934188,0.7927,2258.5,2258.0,14.42864239]
[1750693934391,0.7927,2258.5,2258.0,12.261]
[1750693934692,0.7927,2258.5,2258.2,4.42822308]
[1750693935051,0.7927,2258.5,2258.1,4.42840512]
[1750693935757,0.7927,2258.5,2258.0,22.2965858]
[1750693935956,0.7927,2258.5,2258.1,4.42831667]
[1750693936190,0.7927,2258.5,2258.2,4.42823034]
[1750693936386,0.7927,2258.5,2258.4,4.42791356]
[1750693936571,0.45288537,2259.1,2258.5,4.4277171]
[1750693936572,0.7703,2259.0,2258.5,4.4277171]
[1750693936772,2.78823494,2259.0,2257.9,4.4288941]
[1750693936974,0.7703,2258.9,2258.3,16.68909925]
[1750693937178,0.7703,2258.9,2258.3,12.261]
[1750693937505,11.99559587,2258.9,2258.2,10.0]
[1750693937692,11.99559587,2258.9,2258.2,14.42823355]
[1750693937894,13.57435658,2258.9,2258.4,4.42783632]
[1750693938055,2.34906071,2258.9,2258.5,4.42770032]
[1750693938264,0.7703,2258.9,2258.3,4.42802529]
[1750693938462,0.7703,2258.9,2258.3,14.55202529]
[1750693938981,0.7703,2258.9,2258.3,14.5519372]
[1750693939193,0.7703,2258.9,2258.3,14.55198869]
[1750693939905,11.22529587,2258.6,2258.0,10.0]
[1750693940090,11.22529587,2258.6,2258.0,24.54362235]
[1750693940289,11.22529587,2258.6,2258.2,10.0]
[1750693940494,11.22529587,2258.6,2258.1,10.0]
[1750693940696,11.22529587,2258.6,2258.1,14.42844921]
[1750693940869,1.20156959,2258.6,2258.3,4.42810486]
[1750693941072,0.7904,2258.7,2258.3,4.42810486]
[1750693941394,0.7904,2258.7,2258.2,10.0]
[1750693941711,0.7904,2258.7,2258.2,14.42829545]
[1750693942611,0.7904,2258.7,2258.2,14.42820512]
[1750693942784,0.7904,2258.7,2258.2,10.0]
[1750693942966,0.7904,2258.7,2258.3,4.428028]
[1750693943171,2.26244021,2258.7,2258.2,14.42813005]
[1750693943373,1.02506959,2258.6,2258.3,4.42810215]
[1750693943924,0.8154,2258.3,2257.5,6.69055684]
[1750693944225,0.8154,2258.1,2257.5,6.69055684]
[1750693944386,12.25036546,2258.0,2257.5,2.261]
[1750693944707,2.33164614,2257.9,2257.5,2.261]
[1750693944912,0.8154,2257.7,2257.3,10.63]
[1750693945076,1.02506959,2257.6,2257.3,10.63]
[1750693945272,1.02506959,2257.5,2257.2,10.0]
[1750693945472,1.02506959,2257.4,2257.2,10.0]
[1750693945672,1.02506959,2257.3,2257.2,10.0]
[1750693946098,0.8154,2257.7,2257.2,10.0]
[1750693946099,1.02506959,2257.6,2257.3,4.43001738]
[1750693946304,1.02506959,2257.5,2257.2,10.0]
[1750693946503,1.02506959,2257.4,2257.2,14.43024438]
[1750693946695,1.02506959,2257.3,2257.2,14.43024438]
[1750693948321,1.02506959,2257.6,2257.5,4.42967884]
[1750693948624,1.02506959,2257.6,2257.4,4.42976071]
[1750693948827,1.02506959,2257.5,2257.4,4.42976071]
[1750693949193,1.02506959,2257.6,2257.4,4.42976071]
[1750693949399,1.02506959,2257.5,2257.4,4.42976071]
[1750693949811,1.03163254,2257.5,2256.9,4.43076194]
[1750693950120,0.8154,2257.7,2256.9,4.43076194]
[1750693950121,1.03163254,2257.4,2257.1,4.43043728]
[1750693950323,1.03163254,2257.3,2257.0,17.831]
[1750693950622,1.85603254,2257.2,2256.5,12.901]
[1750693950827,11.22529587,2256.8,2256.1,2.261]
[1750693950996,11.22529587,2256.8,2255.8,7.831]
[1750693950997,0.8244,2256.4,2255.8,7.831]
[1750693951331,1.03163254,2256.3,2255.7,2.261]
[1750693951502,1.85603254,2256.2,2255.7,12.261]
[1750693951702,0.8244,2256.2,2255.7,16.6941037]
[1750693952024,1.03163254,2256.1,2255.7,16.69420204]
[1750693952197,1.03163254,2256.1,2255.7,12.261]
[1750693952403,0.8244,2256.2,2255.7,2.261]
[1750693952608,0.8244,2256.2,2255.7,12.261]
[1750693952941,0.7527,2255.8,2254.8,2.23]
[1750693953229,8.86263254,2256.1,2254.8,2.23]
[1750693953230,0.7527,2255.4,2254.8,6.66489246]
[1750693953391,1.78433254,2255.4,2254.8,2.23]
[1750693953587,0.7527,2255.4,2255.1,4.43428273]
[1750693954194,0.7527,2255.4,2255.0,12.26751933]
[1750693954803,0.7527,2255.4,2255.0,7.833]
[1750693955135,0.7527,2255.4,2255.0,12.26757724]
[1750693955492,11.22529587,2255.2,2254.3,2.23]
[1750693955693,1.12252959,2255.1,2254.5,4.43545102]
[1750693955935,2.14304048,2255.1,2254.5,4.43545102]
[1750693956334,1.12252959,2255.1,2254.6,10.0]
[1750693956495,0.7527,2255.4,2254.7,4.43517984]
[1750693956696,0.7527,2255.4,2254.7,4.43504749]
[1750693957393,0.7527,2255.4,2255.0,4.43458948]
[1750693957626,0.7527,2255.4,2254.6,6.66621626]
[1750693957793,11.22529587,2255.4,2254.4,4.43565362]
[1750693957989,0.8315,2255.2,2254.5,10.0]
[1750693958645,0.8315,2255.2,2254.6,4.43528233]
[1750693958934,0.8315,2255.2,2254.7,4.43509664]
[1750693959091,0.8315,2255.2,2254.5,10.0]
[1750693959297,0.8315,2255.2,2254.7,4.43517436]
[1750693959539,2.14943255,2255.2,2254.7,4.43517436]
[1750693960048,2.14943255,2255.2,2254.8,4.43496087]
[1750693960234,2.14943255,2255.2,2254.7,4.43517436]
[1750693960235,0.8315,2255.2,2254.7,7.837]
[1750693960394,0.8315,2255.2,2254.8,4.4348513]
[1750693960735,0.8285,2255.5,2255.2,4.43401303]
[1750693961027,0.8285,2255.5,2255.3,4.43399242]
[1750693961441,0.8285,2255.5,2255.0,4.43447457]
[1750693961644,11.22529587,2255.4,2254.7,0.01120476]
[1750693961805,11.22529587,2255.4,2253.5,2.9821]
[1750693961806,0.7546,2254.7,2253.5,2.9821]
[1750693962012,0.7546,2254.2,2253.5,2.231]
[1750693962541,0.7546,2254.2,2253.6,10.0]
[1750693962734,0.7546,2254.2,2253.8,4.43694029]
[1750693962914,0.7546,2254.2,2253.7,4.43704028]
[1750693963111,0.7546,2254.2,2253.5,10.07]
[1750693963310,1.9966836,2254.2,2253.7,10.0]
[1750693963636,1.9966836,2254.2,2253.0,7.838]
[1750693963637,0.8237,2254.1,2253.0,7.838]
[1750693963818,0.8237,2253.9,2253.2,10.0]
[1750693964021,0.8237,2253.6,2253.0,2.232]
[1750693964242,0.8237,2253.6,2253.0,6.67034106]
[1750693964456,0.8237,2253.6,2253.0,4.43842643]
[1750693964656,0.8237,2253.6,2253.0,4.43834263]
[1750693964841,0.8237,2253.6,2253.2,4.43803048]
[1750693965088,0.8237,2253.6,2253.4,4.43762519]
[1750693965203,0.7704,2253.4,2252.7,0.2275503]
[1750693965403,1.25456959,2253.3,2252.7,0.2275503]
[1750693965650,11.22529587,2252.9,2252.7,0.2275503]
[1750693965856,0.762,2253.2,2252.7,0.2275503]
[1750693966208,11.98729587,2252.8,2252.7,0.2275503]
[1750693966527,12.53729587,2252.8,2252.7,0.2275503]
[1750693966725,14.58702546,2252.8,2252.7,0.2275503]
[1750693967442,0.7827,2253.0,2252.6,4.43917749]
[1750693967761,0.7827,2253.5,2252.7,2.232]
[1750693968066,11.22529587,2253.3,2252.7,2.232]
[1750693968219,11.22529587,2253.3,2252.5,2.232]
[1750693968570,11.67013224,2253.3,2252.6,4.43916553]
[1750693968706,1.66319702,2253.3,2252.6,4.43920498]
[1750693969129,2.03057609,2253.3,2252.7,4.43909148]
[1750693969354,2.03057609,2253.3,2252.5,4.43938599]
[1750693969551,2.03057609,2253.3,2252.8,4.43885454]
[1750693969744,0.36737907,2253.2,2252.9,4.43862067]
[1750693970076,0.36737907,2253.2,2252.9,4.43861904]
[1750693970352,0.36737907,2253.2,2252.5,2.323]
[1750693970656,0.36737907,2253.2,2252.5,6.76240602]
[1750693970882,0.36737907,2253.2,2252.4,0.27393811]
[1750693970883,11.22529587,2253.0,2252.4,0.27393811]
[1750693971019,1.25389959,2252.9,2252.4,0.27393811]
[1750693971218,11.25389959,2252.9,2252.4,0.27393811]
[1750693972079,0.8292,2252.7,2252.4,0.27393811]
[1750693974369,10.0,2252.6,2252.4,0.27393811]
[1750693975994,0.8292,2252.7,2252.4,0.27393811]
[1750693977496,12.05449587,2252.7,2252.4,0.27393811]
[1750693977840,20.04349587,2252.7,2252.4,0.27393811]
[1750693980282,1.01413114,2252.6,2252.4,0.27393811]
[1750693980464,17.987,2252.5,2252.4,0.27393811]
[1750693980664,1.46683987,2252.5,2252.4,0.27393811]
[1750693980872,12.01281272,2252.5,2252.4,0.27393811]
[1750693981065,13.02694386,2252.5,2252.4,0.27393811]
[1750693981281,12.47694386,2252.5,2252.4,0.27393811]
[1750693981852,1.79463114,2252.5,2252.4,0.27393811]
[1750693982058,1.01413114,2252.6,2252.4,0.27393811]
[1750693982378,1.01413114,2252.7,2252.4,0.27393811]
[1750693982538,1.01413114,2252.6,2252.4,0.27393811]
[1750693982742,1.01413114,2252.7,2252.4,0.27393811]
[1750693982941,12.23942701,2252.6,2252.4,0.27393811]
[1750693983182,1.01413114,2252.5,2252.4,0.27393811]
[1750693984796,11.01413114,2252.6,2252.4,0.27393811]
[1750693984966,1.01413114,2252.6,2252.4,7.86899822]
[1750693985171,1.01966386,2253.5,2252.4,1.10543811]
[1750693985462,12.03969587,2253.1,2252.4,1.10543811]
[1750693985675,1.01966386,2253.0,2252.4,5.54502265]
[1750693985893,1.01966386,2252.9,2252.4,5.54502265]
[1750693986186,1.01966386,2252.8,2252.4,1.10543811]
[1750693986391,1.01966386,2252.7,2252.4,0.27393811]
[1750693986601,1.01966386,2252.6,2252.4,0.27393811]
[1750693986895,1.01966386,2252.5,2252.4,0.27393811]
[1750693988586,1.81366386,2252.5,2252.4,0.27393811]
[1750693988787,2.99503025,2252.5,2252.4,0.27393811]
[1750693989565,1.01966386,2252.5,2252.4,0.27393811]
[1750693989968,17.982,2252.7,2252.4,0.27393811]
[1750693990172,1.02386857,2252.6,2252.4,0.27393811]
[1750693990373,1.02386857,2252.5,2252.4,0.27393811]
[1750693990576,12.24916444,2252.5,2251.7,3.0895]
[1750693990789,0.7993,2252.3,2251.5,2.324]
[1750693990965,10.0,2252.1,2251.5,2.324]
[1750693991164,1.02386857,2252.0,2251.5,6.76539913]
[1750693991411,1.02386857,2251.9,2251.5,6.76539913]
[1750693991594,10.0,2252.1,2251.4,4.44156753]
[1750693991595,1.02386857,2251.8,2251.4,4.44156753]
[1750693991756,10.0,2252.1,2251.4,4.44156753]
[1750693991757,1.02386857,2251.7,2251.5,4.44147256]
[1750693991951,1.02386857,2251.6,2251.5,4.44147256]
[1750693992387,1.02386857,2251.6,2251.2,2.325]
[1750693992589,1.02386857,2251.5,2251.4,4.44168073]
[1750693992897,1.02386857,2251.5,2251.4,5.19558073]
[1750693993392,5.96132242,2253.0,2252.3,4.43979878]
[1750693993393,8.7778,2252.9,2252.3,4.43979878]
[1750693993551,8.7778,2252.9,2252.3,4.43986751]
[1750693993552,1.03021853,2252.8,2252.3,4.43986751]
[1750693993746,1.03021853,2252.7,2252.4,4.43958519]
[1750693993976,1.03021853,2252.6,2252.4,4.43958519]
[1750693994187,1.03028068,2252.5,2252.2,6.76501892]
[1750693994356,1.03028068,2252.4,2252.3,4.43982652]
[1750693994557,1.03028068,2252.4,2252.3,5.22442652]
[1750693995215,0.45240761,2253.5,2253.0,4.43838993]
[1750693995418,20.01239587,2253.6,2252.1,0.7846]
[1750693995419,11.22529587,2253.1,2252.1,0.7846]
[1750693995575,1.03061438,2253.0,2252.5,4.4393762]
[1750693995775,1.03061438,2252.9,2252.1,3.1096]
[1750693995990,1.03061438,2252.8,2252.5,4.43943061]
[1750693996215,1.03061438,2252.7,2252.4,4.43960318]
[1750693996385,1.03061438,2252.6,2252.3,2.325]
[1750693996583,1.03061438,2252.5,2252.4,4.43970875]
[1750693997420,1.03061438,2252.5,2252.4,5.24750875]
[1750693998224,0.8051,2253.5,2252.4,5.24750875]
[1750693998516,1.03060818,2253.4,2253.1,4.43819324]
[1750693998701,1.03060818,2253.3,2253.2,4.43813243]
[1750693998924,1.03060818,2253.3,2253.2,5.21813243]
[1750693999693,19.98279587,2254.5,2253.2,0.78]
[1750693999896,11.03024769,2254.4,2253.7,4.4370655]
[1750694000104,1.03024769,2254.3,2253.7,6.7510529]
[1750694000337,1.03024769,2254.2,2254.0,4.43643597]
[1750694000486,1.03024769,2254.2,2253.8,0.78]
[1750694000815,1.40049617,2254.1,2253.9,6.75075028]
[1750694000980,1.40049617,2254.0,2253.9,6.75075028]
[1750694001177,1.40049617,2254.0,2253.9,4.43675028]
[1750694001782,1.40049617,2254.0,2253.9,4.43675407]
[1750694002024,0.37024848,2254.0,2253.9,4.43675407]
[1750694002220,1.03024769,2254.8,2254.5,0.7752]
[1750694002418,1.03024769,2254.7,2254.6,4.43528552]
[1750694002586,1.03024769,2255.2,2254.6,4.43528552]
[1750694002795,1.03024769,2255.1,2254.5,3.0892]
[1750694002996,1.03024769,2255.0,2254.6,4.43524315]
[1750694003233,1.03024769,2254.9,2254.6,4.43524315]
[1750694003399,1.03024769,2255.2,2254.5,7.52469122]
[1750694003591,1.03024769,2255.1,2254.5,3.0892]
[1750694003795,1.03024769,2255.5,2254.9,4.43476004]
[1750694004114,11.22529587,2255.9,2255.1,0.7877]
[1750694004115,1.03024769,2255.8,2255.1,0.7877]
[1750694004287,0.8279,2255.9,2255.1,7.53493093]
[1750694004489,0.8279,2255.9,2255.1,3.1007]
[1750694004696,0.48575689,2256.8,2255.1,3.1007]
[1750694004697,0.77,2256.9,2255.3,0.7641]
[1750694004928,1.02328696,2256.8,2256.0,4.43246612]
[1750694005099,10.77,2256.9,2256.0,4.43246612]
[1750694005100,1.79328696,2256.9,2256.1,6.74533851]
[1750694005317,1.79328696,2256.9,2256.1,6.74538477]
[1750694005516,1.79328696,2256.9,2256.3,4.43197402]
[1750694005726,0.77,2256.9,2256.4,4.43164574]
[1750694005932,0.77,2256.9,2256.3,4.43193696]
[1750694006210,11.22529587,2257.3,2256.1,2.313]
[1750694006211,1.78989723,2257.2,2256.5,4.43150068]
[1750694006447,0.77,2257.2,2256.5,4.43150068]
[1750694006745,10.77,2257.2,2256.5,4.43150068]
[1750694006958,10.77,2257.2,2256.4,4.4318025]
[1750694007242,10.77,2257.2,2256.0,0.7641]
[1750694007243,11.22529587,2257.0,2256.1,6.74524438]
[1750694007609,11.22529587,2257.0,2256.2,4.43220759]
[1750694008062,11.22529587,2257.0,2256.3,4.43202839]
[1750694008063,10.0,2256.9,2256.3,4.43202839]
[1750694008211,10.0,2256.9,2256.1,2.313]
[1750694008541,10.0,2256.9,2256.1,6.74523875]
[1750694008871,11.22529587,2256.7,2256.0,0.7641]
[1750694009168,11.22529587,2256.7,2255.7,6.74505331]
[1750694009169,10.0,2256.6,2255.7,6.74505331]
[1750694009371,10.0,2256.6,2255.8,4.43291018]
[1750694009525,10.0,2256.6,2255.9,4.43280922]
[1750694009716,10.0,2256.6,2255.7,4.43319223]
[1750694009913,11.22529587,2256.1,2255.3,0.8109]
[1750694010113,11.22529587,2255.8,2254.9,0.8023]
[1750694010333,10.0,2255.7,2254.9,0.8023]
[1750694010572,10.0,2255.7,2255.2,4.43404191]
[1750694011075,10.0,2255.9,2255.0,2.312]
[1750694011252,10.7686,2256.2,2255.5,4.43351592]
[1750694011634,0.7686,2256.2,2255.5,0.8124]
[1750694011838,0.7686,2256.2,2255.0,2.312]
[1750694011839,0.5,2256.0,2255.3,4.43391219]
[1750694012254,0.5,2256.0,2255.2,4.43409379]
[1750694012455,11.22529587,2255.9,2255.3,2.312]
[1750694012660,11.22529587,2255.9,2255.1,4.43438907]
[1750694013289,11.22529587,2255.9,2255.2,4.4341913]
[1750694013437,0.5,2256.0,2255.3,4.43389611]
[1750694013794,0.7841,2256.6,2255.9,4.4328206]
[1750694013995,0.7841,2256.6,2256.0,2.312]
[1750694014456,0.7841,2256.6,2255.5,0.8124]
[1750694014457,10.0,2256.5,2255.5,0.8124]
[1750694014677,0.7841,2256.1,2255.0,2.312]
[1750694014841,11.22529587,2256.0,2255.1,4.43427717]
[1750694015038,17.73086818,2255.9,2255.0,2.312]
[1750694015256,25.73286818,2255.9,2255.0,6.74649042]
[1750694015699,25.73286818,2255.9,2254.8,4.4349687]
[1750694015700,10.0,2255.6,2254.8,4.4349687]
[1750694015859,10.0,2255.6,2254.9,4.43474299]
[1750694016061,10.0,2255.6,2254.8,4.434866]
[1750694016287,17.997,2255.6,2254.8,4.43494664]
[1750694016797,0.5,2255.4,2254.6,6.74728259]
[1750694016996,0.5,2255.4,2254.8,4.4348066]
[1750694017203,0.5,2255.4,2254.9,4.43478043]
[1750694017828,0.5,2255.4,2254.8,2.312]
[1750694017973,0.5,2255.4,2254.6,4.43528979]
[1750694018175,0.7529,2255.3,2254.7,6.74716213]
[1750694018506,0.7529,2255.3,2254.8,4.43496653]
[1750694018697,0.7529,2255.3,2254.7,6.74702972]
[1750694018997,0.7529,2255.3,2254.8,4.43488762]
[1750694019202,0.7529,2255.3,2254.9,4.43478354]
[1750694019582,0.5,2255.4,2254.7,2.312]
[1750694019908,10.0,2255.6,2254.7,2.312]
[1750694020103,10.0,2255.6,2255.2,4.43407802]
[1750694020309,0.8114,2256.2,2255.1,0.7898]
[1750694020607,10.0,2256.1,2255.2,6.74605473]
[1750694020808,10.0,2255.9,2255.2,6.74616483]
[1750694021106,0.7952,2256.0,2255.5,4.43351314]
[1750694021668,0.7952,2256.0,2255.2,2.312]
[1750694021669,0.7952,2256.0,2255.2,4.43409597]
[1750694022007,11.22529587,2255.8,2255.1,2.312]
[1750694022582,11.22529587,2255.8,2255.1,6.74628681]
[1750694022793,0.7813,2255.9,2255.1,2.312]
[1750694023112,10.7813,2255.9,2255.1,2.312]
[1750694023405,10.7813,2255.9,2255.0,2.312]
[1750694023406,10.0,2255.7,2255.0,2.312]
[1750694023603,10.0,2255.7,2255.0,6.74650017]
[1750694023771,0.7813,2255.9,2255.3,4.4338224]
[1750694023971,0.7527,2256.4,2255.5,0.8059]
[1750694024215,0.7527,2256.4,2255.6,2.312]
[1750694024523,10.7527,2256.4,2255.6,6.74531736]
[1750694024728,10.7527,2256.4,2255.6,6.74529898]
[1750694025017,21.97799587,2256.4,2255.6,2.312]
[1750694025223,21.97799587,2256.4,2255.6,6.74538984]
[1750694025437,21.97799587,2256.4,2255.6,4.43331115]
[1750694025827,21.97799587,2256.4,2255.6,4.43331607]
[1750694026134,0.8087,2256.0,2255.3,2.311]
[1750694026341,0.8087,2256.0,2255.2,4.434107]
[1750694026506,0.7671,2255.7,2255.0,4.43451535]
[1750694026831,0.7671,2255.7,2254.9,6.74569508]
[1750694027034,0.7671,2255.7,2255.0,4.43458151]
[1750694027329,1.78879172,2255.7,2255.0,4.43458151]
[1750694027531,1.78879172,2255.7,2254.9,6.74568813]
[1750694027830,1.78879172,2255.7,2255.1,4.43437164]
[1750694028130,0.7671,2255.7,2254.9,2.311]
[1750694028335,10.0,2256.3,2255.5,4.43344691]
[1750694028336,1.02329025,2256.2,2255.5,4.43344691]
[1750694028540,0.8296,2256.1,2255.4,2.311]
[1750694028717,0.8296,2256.4,2255.9,4.43265643]
[1750694028902,0.8296,2256.4,2255.9,6.74065643]
[1750694029239,0.8296,2256.4,2256.0,4.43254889]
[1750694029403,0.8296,2256.4,2255.6,4.43328083]
[1750694029735,11.22529587,2256.3,2255.6,2.308]
[1750694029902,11.22529587,2256.3,2255.5,4.43357113]
[1750694029903,1.02332719,2256.2,2255.5,4.43357113]
[1750694030394,0.7738,2256.0,2255.4,2.308]
[1750694030592,0.7738,2256.0,2255.5,4.43360673]
[1750694030835,0.7738,2256.0,2255.5,6.74158469]
[1750694031344,1.02332719,2255.9,2255.5,2.308]
[1750694032096,1.02332719,2255.9,2255.5,6.7415282]
[1750694032296,1.02332719,2255.9,2255.5,6.74157796]
[1750694032538,1.02332719,2255.8,2255.6,4.4333973]
[1750694032699,1.02332719,2255.9,2255.6,4.43331183]